[Event "2nd Goa GM Open 2019"]
[Site "Goa"]
[Date "2019.06.21"]
[Round "5.21"]
[White "Kunte, Abhijit"]
[Black "Konguvel, Ponnuswamy"]
[Result "1/2-1/2"]
[ECO "A05"]
[WhiteElo "2478"]
[BlackElo "2293"]
[Annotator "ChessBase"]
[PlyCount "76"]
[EventDate "2019.06.17"]
[EventType "swiss"]
[EventCountry "IND"]
[SourceTitle "playchess.com"]
[Source "ChessBase"]
[SourceQuality "1"]
[TimeControl "5400+30"]

1. Nf3 {[%emt 0:00:29]} Nf6 {[%emt 0:00:18]} 2. c4 {[%emt 0:02:57]} g6 {[%emt 0:00:59]} 3. Nc3 {[%emt 0:00:39]} Bg7 {[%emt 0:00:05]} 4. d4 {[%emt 0:01:08]} d5 {[%emt 0:02:53]} 5. g3 {[%emt 0:02:59]} c6 {[%emt 0:06:23]} 6. cxd5 {[%emt 0:04:56]} cxd5 {[%emt 0:00:04]} 7. Bg2 {[%emt 0:00:03]} Ne4 {[%emt 0:00:48]} 8. O-O {[%emt 0:04:41]} Nxc3 {[%emt 0:06:10]} 9. bxc3 {[%emt 0:00:08]} Nc6 {[%emt 0:00:04]} 10. Bf4 {[%emt 0:05:03]} O-O {[%emt 0:00:20]} 11. Nd2 {[%emt 0:01:22]} b6 {[%emt 0:08:59]} 12. e4 {[%emt 0:09:52]} dxe4 {[%emt 0:01:00]} 13. Nxe4 {[%emt 0:00:43]} Bb7 {[%emt 0:00:05]} 14. Re1 {[%emt 0:03:44]} Na5 {[%emt 0:10:01]} 15. Rc1 {[%emt 0:00:16]} Bd5 {[%emt 0:05:00]} 16. h4 {[%emt 0:03:21]} Bxa2 {[%emt 0:10:44]} 17. h5 {[%emt 0:00:07]} Qd7 {[%emt 0:15:42]} 18. hxg6 {[%emt 0:08:49]} hxg6 {[%emt 0:00:12]} 19. Ng5 {[%emt 0:00:10]} Rae8 {[%emt 0:07:17]} 20. Bh3 {[%emt 0:02:09]} f5 {[%emt 0:00:07]} 21. Bg2 {[%emt 0:01:31]} e6 {[%emt 0:02:47]} 22. Be5 {[%emt 0:02:51]} Bb3 {[%emt 0:01:38]} 23. Qe2 {[%emt 0:03:12]} Bc4 {[%emt 0:02:57]} 24. Qe3 {[%emt 0:00:28]} Bxe5 {[%emt 0:00:53]} 25. dxe5 {[%emt 0:01:00]} Rd8 {[%emt 0:00:35]} 26. Qf4 {[%emt 0:05:15]} Kg7 {[%emt 0:01:23]} 27. Bf3 {[%emt 0:00:41]} Rh8 {[%emt 0:02:34]} 28. Rcd1 {[%emt 0:02:39]} Qe7 {[%emt 0:00:18]} 29. Rd6 {[%emt 0:00:21]} b5 {[%emt 0:04:26]} 30. Ra1 {[%emt 0:14:55]} Nb3 {[%emt 0:02:04]} 31. Rxd8 {[%emt 0:01:17]} Rxd8 {[%emt 0:01:19]} 32. Qh4 {[%emt 0:00:09]} Kg8 {[%emt 0:00:44]} 33. Ra6 {[%emt 0:04:35]} Nc5 {[%emt 0:01:18]} 34. Rd6 {[%emt 0:00:15]} Rc8 {[%emt 0:03:11]} 35. Qh6 {[%emt 0:02:35]} Qg7 {[%emt 0:00:07]} 36. Qh4 Qe7 {[%emt 0:00:04]} 37. Qh6 {[%emt 0:00:04]} Qg7 {[%emt 0:00:02]} 38. Qh4 {[%emt 0:00:04]} Nd7 1/2-1/2

[Event "2nd Goa GM Open 2019"]
[Site "Goa"]
[Date "2019.06.21"]
[Round "5.22"]
[White "Rathanvel, V S"]
[Black "Vignesh N R"]
[Result "1-0"]
[ECO "B92"]
[WhiteElo "2314"]
[BlackElo "2459"]
[Annotator "RC"]
[PlyCount "81"]
[EventDate "2019.06.17"]
[EventType "swiss"]
[EventCountry "IND"]
[SourceTitle "playchess.com"]
[Source "ChessBase"]
[SourceQuality "1"]
[TimeControl "5400+30"]

1. e4 {[%emt 0:00:00]} c5 {[%emt 0:00:04]} 2. Nf3 {[%emt 0:00:00]} d6 {[%emt 0:00:08]} 3. d4 {[%emt 0:00:00]} cxd4 {[%emt 0:00:04]} 4. Nxd4 {[%emt 0:00:00]} Nf6 {[%emt 0:00:04]} 5. Nc3 {[%emt 0:00:08]} a6 {[%emt 0:01:14]} 6. Be2 {[%emt 0:00:21]} e5 {[%emt 0:00:17]} 7. Nb3 {[%emt 0:00:17]} Be7 {[%emt 0:00:08]} 8. O-O {[%emt 0:00:10]} O-O {[%emt 0:00:06]} 9. Re1 {[%emt 0:00:13]} Be6 {[%emt 0:00:40]} 10. Be3 {[%emt 0:00:12]} Nbd7 {[%emt 0:01:25]} 11. a4 {[%emt 0:00:21]} Rc8 {[%emt 0:02:45]} 12. Bf3 {[%emt 0:00:11]} Qc7 {[%emt 0:00:44]} 13. a5 {[%emt 0:06:13]} Rfd8 {[%emt 0:00:42]} 14. h3 {[%emt 0:24:33]} h6 {[%emt 0:01:06]} 15. Re2 {[%emt 0:02:46]} Qb8 {[%emt 0:15:56]} 16. Rd2 {[%emt 0:21:30]} b5 {[%emt 0:02:40]} 17. axb6 {[%emt 0:01:57]} Nxb6 {[%emt 0:00:05]} 18. Na5 {[%emt 0:09:23]} Nc4 {[%emt 0:00:33]} 19. Nxc4 {[%emt 0:00:02]} Rxc4 {[%emt 0:00:30]} 20. Nd5 {[%emt 0:03:07]} Bxd5 {[%emt 0:05:44]} 21. exd5 {[%emt 0:00:08]} Qxb2 {[%emt 0:02:46]} 22. Rb1 {[%emt 0:11:19]} Qa3 {[%emt 0:02:44]} 23. Ra1 {[%emt 0:01:57]} Qb4 {[%emt 0:04:57]} 24. Rb1 {[%emt 0:01:32]} Qa4 {[%emt 0:00:47]} 25. Be2 {[%emt 0:03:45]} Rc3 {[%emt 0:02:22]} 26. Ra1 {[%emt 0:01:20]} Ra3 {[%emt 0:01:44]} 27. Rxa3 {[%emt 0:00:05]} Qxa3 {[%emt 0:00:03]} 28. Rd3 {[%emt 0:01:49]} Qa5 {[%emt 0:03:27]} 29. c4 {[%emt 0:04:24]} Ne4 {[%emt 0:09:21]} 30. Bg4 {[%emt 0:04:14]} Bg5 {[%emt 0:15:08]} 31. Bf5 {[%emt 0:01:10]} Bxe3 {[%emt 0:00:29]} 32. Bxe4 {[%emt 0:00:09]} Bd4 {[%emt 0:00:30]} 33. Rg3 {[%emt 0:01:12]} Qa2 {[%emt 0:03:10]} 34. Qf3 {[%emt 0:00:26]} Kf8 {[%emt 0:04:22]} 35. Qf5 {[%emt 0:00:18]} g6 {[%emt 0:15:50]} 36. Qf6 {[%emt 0:00:18]} Rd7 {[%emt 0:00:01]} 37. Rf3 {[%emt 0:01:02]} Qd2 {[%emt 0:04:47]} 38. Qh8+ {[%emt 0:00:09]} Ke7 {[%emt 0:00:01]} 39. Bxg6 {[%emt 0:00:33]} Bxf2+ {[%emt 0:01:19]} 40. Rxf2 {[%emt 0:00:05]} Qe1+ {[%emt 0:00:23]} 41. Rf1 {[%emt 0:00:02]} 1-0

[Event "2nd Goa GM Open 2019"]
[Site "Goa"]
[Date "2019.06.21"]
[Round "5.24"]
[White "Ramnathan, Balasubramaniam"]
[Black "Khusenkhojaev, Muhammad"]
[Result "0-1"]
[ECO "A05"]
[WhiteElo "2184"]
[BlackElo "2446"]
[Annotator "NA RC"]
[PlyCount "111"]
[EventDate "2019.06.17"]
[EventType "swiss"]
[EventCountry "IND"]
[SourceTitle "playchess.com"]
[Source "ChessBase"]
[SourceQuality "1"]
[TimeControl "5400+30"]

1. Nf3 {[%emt 0:00:00]} Nf6 {[%emt 0:00:00]} 2. b3 {[%emt 0:00:00]} g6 {[%emt 0:00:00]} 3. Bb2 {[%emt 0:00:09]} Bg7 {[%emt 0:00:00]} 4. e3 {[%emt 0:00:20]} c5 {[%emt 0:00:10]} 5. Be2 {[%emt 0:00:36]} O-O {[%emt 0:00:23]} 6. O-O {[%emt 0:00:26]} d5 {[%emt 0:00:53]} 7. d4 {[%emt 0:00:35]} Ne4 {[%emt 0:01:34]} 8. Qc1 {[%emt 0:03:14]} cxd4 {[%emt 0:04:26]} 9. Bxd4 {[%emt 0:01:54]} Nf6 {[%emt 0:01:07]} 10. c4 {[%emt 0:01:35]} Nc6 {[%emt 0:00:08]} 11. Bb2 {[%emt 0:00:19]} dxc4 {[%emt 0:01:51]} 12. Qxc4 {[%emt 0:07:32]} Qa5 {[%emt 0:01:11]} 13. Nc3 {[%emt 0:02:06]} Bf5 {[%emt 0:03:17]} 14. a3 {[%emt 0:07:49]} Be6 {[%emt 0:00:24]} 15. Qa4 {[%emt 0:00:40]} Qxa4 {[%emt 0:08:22]} 16. bxa4 {[%emt 0:02:17]} Nd5 {[%emt 0:00:13]} 17. Nxd5 {[%emt 0:03:17]} Bxd5 {[%emt 0:02:45]} 18. Bxg7 {[%emt 0:00:16]} Kxg7 {[%emt 0:00:01]} 19. Rab1 {[%emt 0:00:59]} Rab8 {[%emt 0:00:07]} 20. Rfd1 {[%emt 0:01:41]} Rfd8 {[%emt 0:01:06]} 21. Kf1 {[%emt 0:04:20]} e6 {[%emt 0:06:03]} 22. Nd2 {[%emt 0:03:39]} Na5 {[%emt 0:01:23]} 23. Bf3 {[%emt 0:12:51]} Rbc8 {[%emt 0:05:55]} 24. Rdc1 {[%emt 0:06:01]} Ba2 {[%emt 0:01:59]} 25. Rxc8 {[%emt 0:00:24]} Rxc8 {[%emt 0:00:10]} 26. Rb2 {[%emt 0:02:20]} Bc4+ {[%emt 0:00:14]} 27. Ke1 {[%emt 0:07:40]} Ba6 {[%emt 0:01:41]} 28. Nb3 {[%emt 0:02:51]} Nxb3 {[%emt 0:11:30]} 29. Rxb3 {[%emt 0:00:09]} Rc2 {[%emt 0:00:12]} 30. Bxb7 {[%emt 0:01:54]} Bc4 {[%emt 0:00:06]} 31. Rb4 {[%emt 0:05:47]} a5 {[%emt 0:00:12]} 32. Kd1 {[%emt 0:01:37]} Rc3 {[%emt 0:00:09]} 33. Rb2 {[%emt 0:05:02]} Rxa3 {[%emt 0:01:59]} 34. Bc6 {[%emt 0:00:48]} Bb3+ {[%emt 0:00:26]} 35. Kc1 {[%emt 0:01:38]} Bxa4 {[%emt 0:00:16]} 36. Bxa4 {[%emt 0:00:36]} Rxa4 {[%emt 0:00:05]} 37. Kb1 {[%emt 0:00:29]} Kf6 {[%emt 0:04:40]} 38. Rc2 h5 {[%emt 0:03:04]} 39. Rc5 {[%emt 0:01:28]} h4 {[%emt 0:00:54]} 40. h3 {[%emt 0:01:36]} g5 {[%emt 0:00:26]} 41. Kb2 {[%emt 0:00:12]} Kg6 {[%emt 0:01:07]} 42. Re5 {[%emt 0:02:07]} g4 {[%emt 0:02:25]} 43. Kb1 {[%emt 0:01:12]} g3 {[%emt 0:03:36]} 44. f3 {[%emt 0:03:29]} Kf6 {[%emt 0:02:12]} 45. Rh5 {[%emt 0:00:26]} Ra3 {[%emt 0:00:10]} 46. Rxh4 {[%emt 0:01:31]} Rxe3 {[%emt 0:00:05]} 47. Rg4 {[%emt 0:01:11]} Re1+ {[%emt 0:00:09]} 48. Kc2 {[%emt 0:00:32]} Re2+ {[%emt 0:00:04]} 49. Kd3 {[%emt 0:00:28]} Rxg2 {[%emt 0:00:10]} 50. Ke3 {[%emt 0:01:05]} Rg1 {[%emt 0:02:32]} 51. h4 {[%emt 0:01:02]} a4 {[%emt 0:03:34]} 52. h5 {[%emt 0:00:45]} a3 {[%emt 0:00:47]} 53. h6 {[%emt 0:00:18]} a2 {[%emt 0:01:47]} 54. h7 {[%emt 0:00:04]} Rh1 {[%emt 0:00:08]} 55. Ra4 {[%emt 0:00:08]} g2 {[%emt 0:00:25]} 56. Kd4 {Ke5+} 0-1

[Event "2nd Goa GM Open 2019"]
[Site "Goa"]
[Date "2019.06.21"]
[Round "5.27"]
[White "Sammed Jaykumar, Shete"]
[Black "Grahesh Y"]
[Result "1-0"]
[ECO "B53"]
[WhiteElo "2431"]
[BlackElo "2063"]
[Annotator "NA"]
[PlyCount "83"]
[EventDate "2019.06.17"]
[EventType "swiss"]
[EventCountry "IND"]
[SourceTitle "playchess.com"]
[Source "ChessBase"]
[SourceQuality "1"]
[TimeControl "5400+30"]

1. e4 {[%emt 0:00:00]} c5 {[%emt 0:08:04]} 2. Nf3 {[%emt 0:00:00]} d6 {[%emt 0:01:02]} 3. d4 {[%emt 0:00:00]} cxd4 {[%emt 0:00:05]} 4. Qxd4 {[%emt 0:00:00]} Nc6 {[%emt 0:01:27]} 5. Qe3 {[%emt 0:00:05]} Nf6 {[%emt 0:07:57]} 6. Be2 {[%emt 0:00:26]} g6 {[%emt 0:01:13]} 7. h3 {[%emt 0:00:18]} Bg7 {[%emt 0:00:10]} 8. O-O {[%emt 0:00:10]} O-O {[%emt 0:00:27]} 9. Rd1 {[%emt 0:00:12]} Bd7 {[%emt 0:10:31]} 10. c4 {[%emt 0:00:27]} Rc8 {[%emt 0:01:24]} 11. Nc3 {[%emt 0:00:57]} Qc7 {[%emt 0:01:52]} 12. Rb1 {[%emt 0:02:17]} a6 {[%emt 0:04:07]} 13. b3 {[%emt 0:04:32]} Be6 {[%emt 0:09:56]} 14. Bb2 {[%emt 0:01:34]} Qa5 {[%emt 0:02:04]} 15. Nd5 {[%emt 0:11:16]} Qc5 {[%emt 0:15:31]} 16. Nxf6+ {[%emt 0:09:33]} exf6 {[%emt 0:00:09]} 17. Qf4 {[%emt 0:02:57]} Ne5 {[%emt 0:03:40]} 18. Nd4 {[%emt 0:00:58]} Rfd8 {[%emt 0:00:54]} 19. Rd2 {[%emt 0:04:58]} Rd7 {[%emt 0:04:11]} 20. Rbd1 {[%emt 0:01:42]} Rcd8 {[%emt 0:01:07]} 21. Kh1 {[%emt 0:06:40]} h5 {[%emt 0:02:34]} 22. Qh4 {[%emt 0:01:52]} Nc6 {[%emt 0:08:44]} 23. Nxc6 {[%emt 0:21:08]} Qxc6 {[%emt 0:04:16]} 24. Bf3 {[%emt 0:00:05]} Qc5 {[%emt 0:01:06]} 25. Bxf6 {[%emt 0:00:24]} Bxf6 {[%emt 0:01:21]} 26. Qxf6 {[%emt 0:00:06]} b5 {[%emt 0:00:28]} 27. cxb5 {[%emt 0:00:54]} axb5 {[%emt 0:00:05]} 28. Be2 {[%emt 0:01:04]} Ra8 {[%emt 0:00:46]} 29. f4 {[%emt 0:00:48]} Rdd8 {[%emt 0:05:38]} 30. Bd3 {[%emt 0:05:06]} Bd7 {[%emt 0:00:42]} 31. f5 {[%emt 0:00:26]} Be8 {[%emt 0:00:53]} 32. Bb1 {[%emt 0:00:33]} Rdc8 {[%emt 0:02:03]} 33. Rxd6 {[%emt 0:00:32]} Qf2 {[%emt 0:00:56]} 34. Qg5 {[%emt 0:01:36]} Rc3 {[%emt 0:00:26]} 35. R6d2 {[%emt 0:01:31]} Qc5 {[%emt 0:00:08]} 36. Qf4 {[%emt 0:02:39]} Rc8 {[%emt 0:00:20]} 37. e5 {[%emt 0:00:44]} Bc6 {[%emt 0:00:44]} 38. Kh2 {[%emt 0:00:09]} Re3 {[%emt 0:00:40]} 39. Rd8+ {[%emt 0:00:38]} Rxd8 {[%emt 0:00:05]} 40. Rxd8+ {[%emt 0:00:07]} Kg7 {[%emt 0:00:07]} 41. f6+ {[%emt 0:00:10]} Kh7 {[%emt 0:00:33]} 42. Rh8+ {[%emt 0:00:07]} 1-0

[Event "2nd Goa GM Open 2019"]
[Site "Goa"]
[Date "2019.06.21"]
[Round "5.30"]
[White "Turov, Maxim"]
[Black "Mithil, Ajgaonkar"]
[Result "1-0"]
[ECO "B12"]
[WhiteElo "2579"]
[BlackElo "2311"]
[Annotator "RC"]
[PlyCount "73"]
[EventDate "2019.06.17"]
[EventType "swiss"]
[EventCountry "IND"]
[SourceTitle "playchess.com"]
[Source "ChessBase"]
[SourceQuality "1"]
[TimeControl "5400+30"]

1. e4 {[%emt 0:00:00]} c6 {[%emt 0:00:00]} 2. d4 {[%emt 0:00:00]} d5 {[%emt 0:00:01]} 3. e5 {[%emt 0:00:00]} Bf5 {[%emt 0:02:44]} 4. Nf3 {[%emt 0:00:00]} e6 {[%emt 0:00:04]} 5. Be2 {[%emt 0:00:07]} Nd7 {[%emt 0:05:48]} 6. O-O {[%emt 0:01:24]} Bg6 {[%emt 0:04:52]} 7. Nbd2 {[%emt 0:00:52]} Nh6 {[%emt 0:06:37]} 8. Nb3 {[%emt 0:05:15]} Nf5 {[%emt 0:14:23]} 9. c3 {[%emt 0:11:48]} h5 {[%emt 0:02:39]} 10. Ng5 {[%emt 0:08:21]} Be7 {[%emt 0:04:15]} 11. Nh3 {[%emt 0:00:36]} h4 {[%emt 0:08:20]} 12. Nf4 {[%emt 0:05:33]} Bh7 {[%emt 0:02:47]} 13. g4 {[%emt 0:08:41]} hxg3 {[%emt 0:06:14]} 14. fxg3 {[%emt 0:01:16]} Qb6 {[%emt 0:05:48]} 15. g4 {[%emt 0:13:12]} Nh4 {[%emt 0:02:34]} 16. Nh5 {[%emt 0:00:52]} Nxe5 17. Rf2 {[%emt 0:01:26]} f6 {[%emt 0:21:02]} 18. Nxg7+ {[%emt 0:11:36]} Kd7 {[%emt 0:04:14]} 19. Nh5 Raf8 {[%emt 0:06:26]} 20. Bh6 {[%emt 0:03:43]} Rf7 {[%emt 0:00:13]} 21. Bf4 {[%emt 0:01:44]} Neg6 {[%emt 0:00:55]} 22. Bg5 {[%emt 0:03:49]} Rhf8 {[%emt 0:00:24]} 23. Qf1 {[%emt 0:00:09]} f5 {[%emt 0:00:32]} 24. Bxe7 {[%emt 0:00:15]} Kxe7 {[%emt 0:00:23]} 25. g5 {[%emt 0:01:03]} f4 {[%emt 0:00:31]} 26. Bg4 {[%emt 0:00:53]} Nf5 {[%emt 0:00:38]} 27. Qh3 {[%emt 0:00:40]} e5 {[%emt 0:00:33]} 28. Nf6 {[%emt 0:00:23]} Ne3 {[%emt 0:00:30]} 29. Nc5 {[%emt 0:03:30]} Rh8 {[%emt 0:00:29]} 30. Bh5 {[%emt 0:00:52]} Qd8 {[%emt 0:00:29]} 31. Qe6+ {[%emt 0:00:35]} Kf8 {[%emt 0:00:07]} 32. Nxh7+ {[%emt 0:00:50]} Rhxh7 {[%emt 0:00:53]} 33. Qxg6 {[%emt 0:00:34]} Qc8 {[%emt 0:00:32]} 34. dxe5 {[%emt 0:01:35]} Qh3 {[%emt 0:00:30]} 35. Ne6+ {[%emt 0:00:30]} Ke7 {[%emt 0:00:10]} 36. Nxf4 {[%emt 0:00:09]} Rxf4 {[%emt 0:00:44]} 37. Qd6# {[%emt 0:00:09]} 1-0

[Event "2nd Goa GM Open 2019"]
[Site "Goa"]
[Date "2019.06.22"]
[Round "6.1"]
[White "Petrosyan, Manuel"]
[Black "Kostenko, Petr"]
[Result "1/2-1/2"]
[ECO "A37"]
[WhiteElo "2573"]
[BlackElo "2473"]
[Annotator "ChessBase"]
[PlyCount "138"]
[EventDate "2019.06.17"]
[EventType "swiss"]
[EventCountry "IND"]
[SourceTitle "playchess.com"]
[Source "ChessBase"]
[SourceQuality "1"]
[TimeControl "5400+30"]

1. Nf3 {[%emt 0:01:17]} c5 2. c4 {[%emt 0:00:50]} Nc6 {[%emt 0:03:12]} 3. Nc3 {[%emt 0:00:36]} g6 {[%emt 0:00:05]} 4. g3 {[%emt 0:00:54]} Bg7 {[%emt 0:00:16]} 5. Bg2 {[%emt 0:00:05]} d6 {[%emt 0:00:06]} 6. d3 {[%emt 0:01:35]} Bf5 {[%emt 0:00:46]} 7. h3 {[%emt 0:03:22]} Qc8 {[%emt 0:01:28]} 8. Qd2 {[%emt 0:01:59]} a6 {[%emt 0:01:12]} 9. b3 {[%emt 0:02:45]} Nf6 {[%emt 0:09:12]} 10. Bb2 {[%emt 0:02:02]} O-O {[%emt 0:00:07]} 11. Nd5 {[%emt 0:05:01]} Nxd5 {[%emt 0:00:50]} 12. Bxg7 {[%emt 0:00:18]} Kxg7 {[%emt 0:00:03]} 13. cxd5 {[%emt 0:00:08]} Na7 {[%emt 0:00:07]} 14. Rc1 {[%emt 0:02:42]} Rb8 {[%emt 0:00:36]} 15. e4 {[%emt 0:06:19]} Bd7 {[%emt 0:00:05]} 16. d4 {[%emt 0:00:05]} b6 {[%emt 0:00:08]} 17. a4 {[%emt 0:00:12]} e6 {[%emt 0:03:34]} 18. dxe6 {[%emt 0:05:22]} Bxe6 {[%emt 0:00:12]} 19. d5 {[%emt 0:00:05]} Bd7 {[%emt 0:00:03]} 20. h4 {[%emt 0:00:16]} h5 {[%emt 0:00:31]} 21. O-O {[%emt 0:00:51]} f6 {[%emt 0:00:02]} 22. Rfe1 {[%emt 0:02:32]} Qd8 {[%emt 0:00:37]} 23. Bf1 {[%emt 0:01:31]} a5 {[%emt 0:11:00]} 24. Ra1 {[%emt 0:00:53]} Rf7 {[%emt 0:00:25]} 25. Qc3 {[%emt 0:03:00]} Kh7 {[%emt 0:15:52]} 26. Nd2 {[%emt 0:00:39]} b5 {[%emt 0:00:05]} 27. axb5 {[%emt 0:01:00]} Nxb5 {[%emt 0:00:41]} 28. Bxb5 {[%emt 0:02:01]} Rxb5 {[%emt 0:00:34]} 29. Nc4 {[%emt 0:01:03]} Qb8 {[%emt 0:01:25]} 30. Nxa5 {[%emt 0:03:34]} Rb4 {[%emt 0:00:11]} 31. Qe3 {[%emt 0:06:28]} Bb5 {[%emt 0:04:05]} 32. Rac1 {[%emt 0:06:13]} Ra7 {[%emt 0:01:06]} 33. Nc4 {[%emt 0:00:42]} Bxc4 {[%emt 0:00:18]} 34. bxc4 {[%emt 0:00:15]} Kg7 {[%emt 0:01:45]} 35. Rc3 {[%emt 0:01:18]} Rb1 {[%emt 0:03:49]} 36. Rxb1 {[%emt 0:03:12]} Qxb1+ {[%emt 0:00:03]} 37. Rc1 {[%emt 0:00:24]} Qb2 {[%emt 0:02:03]} 38. Qc3 {[%emt 0:01:02]} Qe2 {[%emt 0:01:56]} 39. Qc2 {[%emt 0:08:10]} Qf3 {[%emt 0:01:23]} 40. Rb1 {[%emt 0:01:39]} Re7 {[%emt 0:07:11]} 41. Re1 {[%emt 0:00:39]} Qa3 {[%emt 0:00:08]} 42. Kg2 {[%emt 0:00:27]} Rb7 {[%emt 0:01:48]} 43. Re3 {[%emt 0:03:46]} Qa1 {[%emt 0:02:11]} 44. Qc3 {[%emt 0:04:33]} Qb1 {[%emt 0:08:55]} 45. Rf3 {[%emt 0:00:09]} Rf7 {[%emt 0:00:22]} 46. Rf4 {[%emt 0:00:18]} Qa2 {[%emt 0:00:54]} 47. g4 {[%emt 0:01:09]} hxg4 {[%emt 0:00:24]} 48. Rxg4 {[%emt 0:00:17]} Kh7 {[%emt 0:01:20]} 49. Qd3 {[%emt 0:05:03]} Rb7 {[%emt 0:03:02]} 50. h5 {[%emt 0:02:37]} Rb3 {[%emt 0:01:13]} 51. hxg6+ {[%emt 0:05:24]} Kg7 {[%emt 0:00:04]} 52. Qd1 {[%emt 0:00:03]} Rb1 {[%emt 0:00:09]} 53. Qf3 {[%emt 0:03:19]} Qxc4 {[%emt 0:00:14]} 54. Qxf6+ {[%emt 0:04:55]} Kxf6 {[%emt 0:00:31]} 55. e5+ {[%emt 0:00:00]} Kxe5 {[%emt 0:00:50]} 56. Rxc4 {[%emt 0:00:01]} Rb7 {[%emt 0:01:02]} 57. Kf3 {[%emt 0:02:23]} Rg7 {[%emt 0:00:36]} 58. Rg4 {[%emt 0:01:01]} Kf5 {[%emt 0:00:31]} 59. Rf4+ {[%emt 0:00:16]} Kxg6 {[%emt 0:00:09]} 60. Ke3 {[%emt 0:00:34]} Re7+ {[%emt 0:06:23]} 61. Kd3 {[%emt 0:00:01]} Rf7 {[%emt 0:00:15]} 62. Rg4+ {[%emt 0:00:10]} Kh5 {[%emt 0:00:53]} 63. Re4 {[%emt 0:01:04]} Kg6 {[%emt 0:03:36]} 64. Re6+ {[%emt 0:00:45]} Rf6 {[%emt 0:00:05]} 65. Kc4 {[%emt 0:00:09]} Kf7 {[%emt 0:00:51]} 66. Re2 {[%emt 0:00:01]} Rf5 {[%emt 0:01:05]} 67. Re6 {[%emt 0:00:12]} Rf6 {[%emt 0:00:04]} 68. Re2 {[%emt 0:00:03]} Rf5 {[%emt 0:00:02]} 69. Re6 {[%emt 0:00:06]} Rf6 {[%emt 0:00:03]} 1/2-1/2

[Event "2nd Goa GM Open 2019"]
[Site "Goa"]
[Date "2019.06.22"]
[Round "6.4"]
[White "Nguyen, Van Huy"]
[Black "Stupak, Kirill"]
[Result "1/2-1/2"]
[ECO "E06"]
[WhiteElo "2456"]
[BlackElo "2584"]
[Annotator "ChessBase"]
[PlyCount "64"]
[EventDate "2019.06.17"]
[EventType "swiss"]
[EventCountry "IND"]
[SourceTitle "playchess.com"]
[Source "ChessBase"]
[SourceQuality "1"]
[TimeControl "5400+30"]

1. d4 {[%emt 0:02:07]} Nf6 {[%emt 0:00:00]} 2. c4 {[%emt 0:00:37]} e6 {[%emt 0:00:00]} 3. Nf3 {[%emt 0:00:32]} d5 {[%emt 0:00:00]} 4. g3 {[%emt 0:00:43]} Be7 {[%emt 0:00:00]} 5. Bg2 {[%emt 0:00:12]} O-O {[%emt 0:00:00]} 6. O-O {[%emt 0:00:08]} dxc4 {[%emt 0:00:00]} 7. Qc2 {[%emt 0:00:39]} b6 {[%emt 0:00:00]} 8. Bg5 {[%emt 0:02:41]} Nd5 {[%emt 0:01:39]} 9. Bxe7 {[%emt 0:00:38]} Qxe7 {[%emt 0:00:02]} 10. Qxc4 {[%emt 0:04:43]} Ba6 {[%emt 0:09:08]} 11. Qc2 {[%emt 0:02:21]} Nd7 {[%emt 0:00:27]} 12. Nc3 {[%emt 0:06:10]} Nxc3 {[%emt 0:04:08]} 13. bxc3 {[%emt 0:02:00]} Rac8 {[%emt 0:00:22]} 14. Rfe1 {[%emt 0:02:59]} c5 {[%emt 0:00:10]} 15. Qa4 {[%emt 0:05:33]} Nb8 {[%emt 0:00:00]} 16. Rf1 {[%emt 0:00:00]} Nd7 {[%emt 0:01:20]} 17. Rfe1 {[%emt 0:01:00]} Nb8 {[%emt 0:00:00]} 18. Ne5 {[%emt 0:07:46]} f6 {[%emt 0:04:28]} 19. Nf3 {[%emt 0:02:39]} cxd4 {[%emt 0:03:44]} 20. cxd4 {[%emt 0:00:57]} Rc4 {[%emt 0:00:24]} 21. Qd1 {[%emt 0:02:09]} Bb7 {[%emt 0:05:31]} 22. e4 {[%emt 0:04:59]} Rd8 {[%emt 0:03:59]} 23. Rc1 {[%emt 0:07:31]} Rxc1 {[%emt 0:21:29]} 24. Qxc1 {[%emt 0:00:31]} Qf7 {[%emt 0:00:44]} 25. Qc4 {[%emt 0:11:16]} Nc6 {[%emt 0:01:18]} 26. Bh3 {[%emt 0:03:10]} Re8 {[%emt 0:09:27]} 27. a3 {[%emt 0:06:30]} Na5 {[%emt 0:04:24]} 28. Qd3 {[%emt 0:00:09]} Nc6 {[%emt 0:08:27]} 29. Qc4 {[%emt 0:00:05]} Na5 {[%emt 0:00:03]} 30. Qd3 {[%emt 0:00:05]} Nc6 {[%emt 0:00:03]} 31. Qc4 Na5 {[%emt 0:00:03]} 32. Qd3 {[%emt 0:00:10]} Nc6 {[%emt 0:00:02]} 1/2-1/2

[Event "2nd Goa GM Open 2019"]
[Site "Goa"]
[Date "2019.06.22"]
[Round "6.5"]
[White "Jojua, Davit"]
[Black "Sammed Jaykumar, Shete"]
[Result "1-0"]
[ECO "E69"]
[WhiteElo "2580"]
[BlackElo "2431"]
[Annotator "ChessBase"]
[PlyCount "95"]
[EventDate "2019.06.17"]
[EventType "swiss"]
[EventCountry "IND"]
[SourceTitle "playchess.com"]
[Source "ChessBase"]
[SourceQuality "1"]
[TimeControl "5400+30"]

1. d4 {[%emt 0:04:18]} Nf6 {[%emt 0:00:00]} 2. c4 {[%emt 0:00:30]} g6 {[%emt 0:00:06]} 3. g3 {[%emt 0:00:30]} Bg7 {[%emt 0:00:30]} 4. Bg2 {[%emt 0:00:30]} O-O {[%emt 0:00:00]} 5. Nc3 {[%emt 0:00:00]} d6 {[%emt 0:00:00]} 6. Nf3 {[%emt 0:00:00]} Nbd7 {[%emt 0:00:00]} 7. O-O {[%emt 0:00:00]} e5 {[%emt 0:00:00]} 8. e4 {[%emt 0:00:00]} c6 {[%emt 0:00:00]} 9. h3 {[%emt 0:00:00]} Qa5 {[%emt 0:00:00]} 10. Re1 {[%emt 0:01:18]} exd4 {[%emt 0:00:00]} 11. Nxd4 {[%emt 0:00:04]} Ne5 {[%emt 0:00:02]} 12. Bf1 {[%emt 0:01:57]} Qb6 {[%emt 0:00:28]} 13. Kg2 {[%emt 0:16:23]} a6 {[%emt 0:09:56]} 14. b3 {[%emt 0:05:05]} c5 {[%emt 0:03:34]} 15. Nc2 {[%emt 0:03:32]} Be6 {[%emt 0:01:09]} 16. Rb1 {[%emt 0:00:30]} Rae8 {[%emt 0:00:30]} 17. Bb2 {[%emt 0:00:30]} Qc7 {[%emt 0:00:30]} 18. f4 {[%emt 0:00:30]} Nc6 {[%emt 0:00:30]} 19. Kh2 {[%emt 0:00:30]} h5 {[%emt 0:00:30]} 20. Bg2 {[%emt 0:00:30]} h4 {[%emt 0:41:03]} 21. g4 {[%emt 0:28:42]} Nh7 {[%emt 0:08:22]} 22. Qd2 {[%emt 0:08:08]} Qa5 {[%emt 0:03:09]} 23. Rbd1 {[%emt 0:04:21]} g5 {[%emt 0:01:17]} 24. fxg5 {[%emt 0:05:36]} Ne5 {[%emt 0:07:48]} 25. Ne3 {[%emt 0:05:22]} Nxg5 {[%emt 0:03:02]} 26. Rf1 {[%emt 0:00:02]} Ng6 {[%emt 0:00:47]} 27. Nf5 {[%emt 0:04:10]} Be5+ {[%emt 0:00:04]} 28. Kh1 {[%emt 0:00:03]} f6 {[%emt 0:00:09]} 29. Na4 {[%emt 0:07:44]} Qxd2 {[%emt 0:04:34]} 30. Rxd2 {[%emt 0:00:01]} b5 {[%emt 0:01:26]} 31. Bxe5 {[%emt 0:00:07]} fxe5 {[%emt 0:00:05]} 32. cxb5 axb5 {[%emt 0:00:08]} 33. Nc3 {[%emt 0:02:02]} b4 {[%emt 0:01:11]} 34. Nb5 {[%emt 0:00:13]} Rd8 {[%emt 0:03:48]} 35. Nbxd6 {[%emt 0:01:13]} Rd7 {[%emt 0:01:08]} 36. Rfd1 {[%emt 0:02:05]} Ra8 {[%emt 0:02:10]} 37. Rc1 {[%emt 0:01:08]} Ra5 {[%emt 0:00:42]} 38. Rcc2 {[%emt 0:00:33]} Rda7 {[%emt 0:02:11]} 39. Kg1 {[%emt 0:00:30]} Nf4 {[%emt 0:01:35]} 40. Nxh4 {[%emt 0:00:41]} Rh7 {[%emt 0:00:04]} 41. Ndf5 {[%emt 0:00:29]} Bxf5 {[%emt 0:00:05]} 42. Nxf5 {[%emt 0:00:04]} Nfxh3+ {[%emt 0:00:42]} 43. Bxh3 {[%emt 0:00:39]} Rxh3 {[%emt 0:01:11]} 44. Kg2 {[%emt 0:00:03]} Rc3 {[%emt 0:00:28]} 45. Rd8+ {[%emt 0:01:20]} Kf7 {[%emt 0:00:07]} 46. Rd7+ {[%emt 0:00:25]} Ke8 {[%emt 0:01:38]} 47. Rcd2 {[%emt 0:00:27]} Nxe4 {[%emt 0:00:32]} 48. Re7+ 1-0